[Event "26th OIBM 2023"]
[Site "Gmund am Tegernsee"]
[Date "2023.11.05"]
[Round "9.23"]
[White "Linster, Philippe"]
[Black "Arnhold, Steffi"]
[Result "1/2-1/2"]
[ECO "A29"]
[WhiteElo "2303"]
[BlackElo "2142"]
[Annotator "RC"]
[PlyCount "27"]
[EventDate "2023.10.04"]
[EventType "swiss"]
[EventCountry "GER"]
[SourceTitle "playchess.com"]
[Source "ChessBase"]
[SourceQuality "1"]
[TimeControl "40/5400+30:1800+30"]

1. c4 {[%emt 0:00:03]} e5 {[%emt 0:00:21]} 2. g3 {[%emt 0:00:06]} Nf6 {[%emt 0:00:16]} 3. Bg2 {[%emt 0:00:07]} d5 {[%emt 0:00:14]} 4. cxd5 {[%emt 0:00:05]} Nxd5 {[%emt 0:00:06]} 5. Nc3 {[%emt 0:00:07]} Nb6 {[%emt 0:00:06]} 6. Nf3 {[%emt 0:00:07]} Nc6 {[%emt 0:00:06]} 7. O-O {[%emt 0:00:06]} Be7 {[%emt 0:00:48]} 8. d3 {[%emt 0:00:10]} O-O {[%emt 0:00:20]} 9. Be3 {[%emt 0:00:07]} Be6 {[%emt 0:06:29]} 10. Rc1 {[%emt 0:01:55]} f6 {[%emt 0:03:05]} 11. d4 {[%emt 0:14:52]} exd4 {[%emt 0:07:40]} 12. Nxd4 {[%emt 0:00:12]} Nxd4 {[%emt 0:00:11]} 13. Bxd4 {[%emt 0:00:08]} c6 {[%emt 0:03:08]} 14. e4 {[%emt 0:21:49]} 1/2-1/2

[Event "26th OIBM 2023"]
[Site "Gmund am Tegernsee"]
[Date "2023.11.05"]
[Round "9.24"]
[White "Nagel, Bernhard"]
[Black "Hrebenshchykova, Yelyzaveta"]
[Result "0-1"]
[ECO "A12"]
[WhiteElo "2142"]
[BlackElo "2299"]
[Annotator "RC"]
[PlyCount "62"]
[EventDate "2023.10.04"]
[EventType "swiss"]
[EventCountry "GER"]
[SourceTitle "playchess.com"]
[Source "ChessBase"]
[SourceQuality "1"]
[TimeControl "40/5400+30:1800+30"]

1. Nf3 {[%emt 0:00:04]} d5 {[%emt 0:00:26]} 2. e3 {[%emt 0:00:17]} Nf6 {[%emt 0:03:32]} 3. c4 {[%emt 0:00:22]} g6 {[%emt 0:12:48]} 4. b3 {[%emt 0:03:53]} Bg7 {[%emt 0:03:01]} 5. Bb2 {[%emt 0:00:10]} c6 {[%emt 0:06:43]} 6. Be2 {[%emt 0:04:55]} O-O {[%emt 0:00:20]} 7. O-O {[%emt 0:03:00]} a5 {[%emt 0:02:33]} 8. Nc3 {[%emt 0:01:31]} Ne4 {[%emt 0:06:28]} 9. Rc1 {[%emt 0:02:43]} Nd7 {[%emt 0:14:12]} 10. cxd5 {[%emt 0:06:04]} cxd5 {[%emt 0:00:05]} 11. Qc2 {[%emt 0:00:35]} Nxc3 {[%emt 0:12:04]} 12. dxc3 {[%emt 0:02:32]} Nb6 {[%emt 0:05:11]} 13. Rfd1 {[%emt 0:02:19]} Qc7 {[%emt 0:02:30]} 14. c4 {[%emt 0:03:15]} Bf5 {[%emt 0:04:09]} 15. Qd2 {[%emt 0:00:10]} Bxb2 {[%emt 0:00:12]} 16. Qxb2 {[%emt 0:00:08]} dxc4 {[%emt 0:00:02]} 17. Bxc4 {[%emt 0:00:27]} Nxc4 {[%emt 0:00:08]} 18. Rxc4 {[%emt 0:00:06]} Rad8 {[%emt 0:03:03]} 19. Rxd8 {[%emt 0:02:24]} Qxd8 {[%emt 0:00:12]} 20. h3 {[%emt 0:01:59]} f6 {[%emt 0:02:45]} 21. e4 {[%emt 0:26:14]} Qd1+ {[%emt 0:01:59]} 22. Kh2 {[%emt 0:00:09]} Qd6+ {[%emt 0:00:06]} 23. Kg1 {[%emt 0:08:11]} Be6 {[%emt 0:00:47]} 24. Rd4 {[%emt 0:00:26]} Qc7 {[%emt 0:02:12]} 25. Rd2 {[%emt 0:01:38]} Qf4 {[%emt 0:05:54]} 26. Nd4 {[%emt 0:12:56]} Rd8 {[%emt 0:01:04]} 27. g3 {[%emt 0:00:46]} Qxe4 {[%emt 0:00:30]} 28. Re2 {[%emt 0:01:22]} Qxd4 {[%emt 0:00:07]} 29. Qxd4 {[%emt 0:00:06]} Rxd4 {[%emt 0:00:03]} 30. Rxe6 {[%emt 0:00:06]} Kf7 {[%emt 0:00:08]} 31. Rb6 {[%emt 0:00:07]} Rb4 {[%emt 0:00:17]} 0-1

[Event "26th OIBM 2023"]
[Site "Gmund am Tegernsee"]
[Date "2023.11.05"]
[Round "9.25"]
[White "Bettalli, Francesco"]
[Black "Waldschmidt, Georg"]
[Result "1-0"]
[ECO "C45"]
[WhiteElo "2274"]
[BlackElo "2141"]
[Annotator "RC"]
[PlyCount "97"]
[EventDate "2023.10.04"]
[EventType "swiss"]
[EventCountry "GER"]
[SourceTitle "playchess.com"]
[Source "ChessBase"]
[SourceQuality "1"]
[TimeControl "40/5400+30:1800+30"]

1. e4 {[%emt 0:00:03]} e5 {[%emt 0:00:24]} 2. Nf3 {[%emt 0:00:09]} Nc6 {[%emt 0:00:07]} 3. d4 {[%emt 0:00:12]} exd4 {[%emt 0:00:09]} 4. Nxd4 {[%emt 0:00:08]} Nf6 {[%emt 0:00:11]} 5. Nxc6 {[%emt 0:00:33]} bxc6 {[%emt 0:00:11]} 6. e5 {[%emt 0:00:04]} Qe7 {[%emt 0:00:09]} 7. Qe2 {[%emt 0:00:05]} Nd5 {[%emt 0:00:11]} 8. h4 {[%emt 0:00:07]} Qe6 {[%emt 0:00:17]} 9. Nd2 {[%emt 0:00:08]} a5 {[%emt 0:00:11]} 10. a3 {[%emt 0:08:28]} a4 {[%emt 0:12:42]} 11. Qe4 {[%emt 0:03:56]} Be7 {[%emt 0:11:37]} 12. Bd3 {[%emt 0:03:22]} d6 {[%emt 0:21:40]} 13. c4 {[%emt 0:06:24]} f5 {[%emt 0:09:36]} 14. Qf3 {[%emt 0:05:03]} dxe5 {[%emt 0:01:23]} 15. cxd5 {[%emt 0:00:09]} cxd5 {[%emt 0:00:05]} 16. Be2 {[%emt 0:07:50]} O-O {[%emt 0:00:30]} 17. Qc3 {[%emt 0:00:37]} c5 {[%emt 0:02:56]} 18. Nf3 {[%emt 0:00:09]} Bd6 {[%emt 0:02:57]} 19. Ng5 {[%emt 0:04:59]} Qe7 {[%emt 0:00:38]} 20. Qf3 {[%emt 0:00:58]} e4 {[%emt 0:04:27]} 21. Qh5 {[%emt 0:00:03]} g6 {[%emt 0:00:15]} 22. Qh6 {[%emt 0:00:08]} Ra7 {[%emt 0:00:46]} 23. h5 {[%emt 0:00:22]} Rf6 {[%emt 0:01:23]} 24. Bd2 {[%emt 0:02:56]} gxh5 {[%emt 0:01:04]} 25. Qxh5 {[%emt 0:00:07]} Rg6 {[%emt 0:00:12]} 26. Nh3 {[%emt 0:05:29]} Qg7 {[%emt 0:10:36]} 27. Nf4 {[%emt 0:01:47]} Bxf4 {[%emt 0:00:35]} 28. Bxf4 {[%emt 0:00:01]} Qxb2 {[%emt 0:00:16]} 29. O-O {[%emt 0:00:09]} Qg7 {[%emt 0:02:49]} 30. g3 {[%emt 0:01:48]} Rb7 {[%emt 0:00:46]} 31. Rab1 {[%emt 0:01:51]} Rb3 {[%emt 0:00:23]} 32. Bb5 {[%emt 0:03:02]} Qb7 {[%emt 0:01:20]} 33. Rxb3 {[%emt 0:04:54]} axb3 {[%emt 0:00:06]} 34. Be8 {[%emt 0:00:02]} Re6 {[%emt 0:03:10]} 35. Qg5+ {[%emt 0:01:42]} Qg7 {[%emt 0:00:57]} 36. Qd8 {[%emt 0:00:15]} Qf8 {[%emt 0:00:21]} 37. Qxc8 {[%emt 0:00:04]} Rxe8 {[%emt 0:00:09]} 38. Qb7 {[%emt 0:00:05]} Qf7 {[%emt 0:01:48]} 39. Qxb3 {[%emt 0:00:05]} d4 {[%emt 0:00:11]} 40. Qb6 {[%emt 0:01:04]} Qd5 {[%emt 0:01:06]} 41. Qf6 {[%emt 0:31:33]} Re6 {[%emt 0:30:35]} 42. Qg5+ {[%emt 0:00:13]} Rg6 {[%emt 0:00:47]} 43. Qe7 {[%emt 0:00:01]} Re6 {[%emt 0:00:46]} 44. Qa7 {[%emt 0:00:23]} Rf6 {[%emt 0:02:48]} 45. Rb1 {[%emt 0:00:19]} Rf7 {[%emt 0:00:11]} 46. Rb8+ {[%emt 0:00:20]} Kg7 {[%emt 0:01:07]} 47. Qa6 {[%emt 0:00:06]} Rf6 {[%emt 0:00:41]} 48. Rb7+ {[%emt 0:00:28]} Kg6 {[%emt 0:00:20]} 49. Qa7 {[%emt 0:00:18]} 1-0

[Event "26th OIBM 2023"]
[Site "Gmund am Tegernsee"]
[Date "2023.11.05"]
[Round "9.26"]
[White "Neukirchner, Pascal"]
[Black "Willim, Michael"]
[Result "1-0"]
[ECO "D73"]
[WhiteElo "2265"]
[BlackElo "2138"]
[Annotator "RC"]
[PlyCount "67"]
[EventDate "2023.10.04"]
[EventType "swiss"]
[EventCountry "GER"]
[SourceTitle "playchess.com"]
[Source "ChessBase"]
[SourceQuality "1"]
[TimeControl "40/5400+30:1800+30"]

1. Nf3 {[%emt 0:00:03]} d5 {[%emt 0:00:25]} 2. g3 {[%emt 0:00:05]} g6 {[%emt 0:00:33]} 3. Bg2 {[%emt 0:00:12]} Bg7 {[%emt 0:00:09]} 4. d4 {[%emt 0:01:39]} c6 {[%emt 0:00:07]} 5. O-O {[%emt 0:00:20]} Nf6 {[%emt 0:00:28]} 6. c4 {[%emt 0:00:08]} dxc4 {[%emt 0:00:07]} 7. a4 {[%emt 0:00:40]} O-O {[%emt 0:06:42]} 8. Na3 {[%emt 0:01:05]} c5 {[%emt 0:14:54]} 9. Nxc4 {[%emt 0:17:26]} Nc6 {[%emt 0:01:36]} 10. dxc5 {[%emt 0:02:21]} Be6 {[%emt 0:08:39]} 11. Nfe5 {[%emt 0:03:38]} Nxe5 {[%emt 0:01:36]} 12. Nxe5 {[%emt 0:00:47]} Qc7 {[%emt 0:01:06]} 13. Nd3 {[%emt 0:00:34]} Rad8 {[%emt 0:03:31]} 14. Bf4 {[%emt 0:01:52]} Qc8 {[%emt 0:00:38]} 15. Rc1 {[%emt 0:08:39]} Bd5 {[%emt 0:08:34]} 16. Qc2 {[%emt 0:01:35]} Qe6 {[%emt 0:02:42]} 17. Bxd5 {[%emt 0:13:17]} Rxd5 {[%emt 0:02:55]} 18. f3 {[%emt 0:08:13]} Rfd8 {[%emt 0:06:19]} 19. Rfd1 {[%emt 0:11:48]} Nh5 {[%emt 0:01:36]} 20. e4 {[%emt 0:07:37]} Bd4+ {[%emt 0:08:03]} 21. Kg2 {[%emt 0:00:09]} R5d7 {[%emt 0:01:16]} 22. Bh6 {[%emt 0:03:37]} Qf6 {[%emt 0:02:36]} 23. h4 {[%emt 0:00:21]} Qc6 {[%emt 0:08:50]} 24. b4 {[%emt 0:10:29]} Qc7 {[%emt 0:03:33]} 25. Bf4 {[%emt 0:00:02]} Nxf4+ {[%emt 0:00:23]} 26. Nxf4 {[%emt 0:00:01]} Be3 {[%emt 0:00:36]} 27. Nd5 {[%emt 0:00:39]} Rxd5 {[%emt 0:00:14]} 28. Rxd5 {[%emt 0:00:21]} Bxc1 {[%emt 0:02:14]} 29. Qxc1 {[%emt 0:00:02]} e6 {[%emt 0:00:47]} 30. Rxd8+ {[%emt 0:00:29]} Qxd8 {[%emt 0:00:07]} 31. b5 {[%emt 0:01:21]} Qd3 {[%emt 0:00:37]} 32. c6 {[%emt 0:00:28]} bxc6 {[%emt 0:00:29]} 33. bxc6 {[%emt 0:00:03]} Qe2+ {[%emt 0:00:32]} 34. Kh3 {[%emt 0:00:06]} 1-0

[Event "26th OIBM 2023"]
[Site "Gmund am Tegernsee"]
[Date "2023.11.05"]
[Round "9.27"]
[White "Litzka, Richard"]
[Black "Wyss, Jonas"]
[Result "1-0"]
[ECO "B13"]
[WhiteElo "2036"]
[BlackElo "2265"]
[Annotator "RC"]
[PlyCount "71"]
[EventDate "2023.10.04"]
[EventType "swiss"]
[EventCountry "GER"]
[SourceTitle "playchess.com"]
[Source "ChessBase"]
[SourceQuality "1"]
[TimeControl "40/5400+30:1800+30"]

1. e4 {[%emt 0:00:02]} c6 {[%emt 0:00:19]} 2. d4 {[%emt 0:00:06]} d5 {[%emt 0:00:08]} 3. exd5 {[%emt 0:00:06]} cxd5 {[%emt 0:00:08]} 4. Bd3 {[%emt 0:00:04]} Nc6 {[%emt 0:00:22]} 5. c3 {[%emt 0:00:03]} Nf6 {[%emt 0:00:11]} 6. h3 {[%emt 0:00:03]} e5 {[%emt 0:01:28]} 7. dxe5 {[%emt 0:00:07]} Nxe5 {[%emt 0:00:08]} 8. Nf3 {[%emt 0:00:09]} Nxd3+ {[%emt 0:01:35]} 9. Qxd3 {[%emt 0:00:08]} Bd6 {[%emt 0:00:16]} 10. O-O {[%emt 0:00:17]} O-O {[%emt 0:00:06]} 11. Be3 {[%emt 0:02:16]} Re8 {[%emt 0:12:25]} 12. Nbd2 {[%emt 0:02:11]} Ne4 {[%emt 0:05:00]} 13. Rfd1 {[%emt 0:03:18]} Bf5 {[%emt 0:12:34]} 14. Nf1 {[%emt 0:01:14]} Qf6 {[%emt 0:04:14]} 15. Qxd5 {[%emt 0:44:41]} Rad8 {[%emt 0:16:42]} 16. Bd4 {[%emt 0:01:56]} Qg6 {[%emt 0:03:25]} 17. Nh4 {[%emt 0:00:12]} Bh2+ {[%emt 0:01:34]} 18. Kxh2 {[%emt 0:01:59]} Rxd5 {[%emt 0:00:22]} 19. Nxg6 {[%emt 0:00:07]} hxg6 {[%emt 0:00:15]} 20. Ne3 {[%emt 0:05:40]} Ra5 {[%emt 0:00:36]} 21. Nxf5 {[%emt 0:02:58]} gxf5 {[%emt 0:00:10]} 22. a4 {[%emt 0:02:33]} b5 {[%emt 0:05:14]} 23. axb5 {[%emt 0:04:58]} Rxb5 {[%emt 0:00:02]} 24. b4 {[%emt 0:00:29]} Rb7 {[%emt 0:03:03]} 25. f3 {[%emt 0:00:31]} Ng5 {[%emt 0:00:21]} 26. Rxa7 {[%emt 0:03:35]} Rxa7 {[%emt 0:00:08]} 27. Bxa7 {[%emt 0:00:06]} Re2 {[%emt 0:00:09]} 28. Kg3 {[%emt 0:02:31]} f4+ {[%emt 0:00:38]} 29. Kxf4 {[%emt 0:00:13]} Rxg2 {[%emt 0:00:05]} 30. b5 {[%emt 0:00:46]} Nxh3+ {[%emt 0:00:25]} 31. Ke3 {[%emt 0:00:48]} Rb2 {[%emt 0:00:19]} 32. b6 {[%emt 0:00:20]} f5 {[%emt 0:00:05]} 33. Rd7 {[%emt 0:00:38]} f4+ {[%emt 0:00:14]} 34. Kd3 {[%emt 0:00:10]} Ng5 {[%emt 0:00:36]} 35. b7 {[%emt 0:00:51]} Nxf3 {[%emt 0:00:11]} 36. b8=Q+ {[%emt 0:00:20]} 1-0

[Event "26th OIBM 2023"]
[Site "Gmund am Tegernsee"]
[Date "2023.11.05"]
[Round "9.28"]
[White "Weitzer, Steffen"]
[Black "Beisteiner, Joachim"]
[Result "1-0"]
[ECO "C43"]
[WhiteElo "2256"]
[BlackElo "2115"]
[Annotator "RC"]
[PlyCount "49"]
[EventDate "2023.10.04"]
[EventType "swiss"]
[EventCountry "GER"]
[SourceTitle "playchess.com"]
[Source "ChessBase"]
[SourceQuality "1"]
[TimeControl "40/5400+30:1800+30"]

1. e4 {[%emt 0:00:04]} e5 {[%emt 0:00:13]} 2. Nf3 {[%emt 0:00:12]} Nf6 {[%emt 0:00:13]} 3. d4 {[%emt 0:02:30]} Nxe4 {[%emt 0:00:33]} 4. Bd3 {[%emt 0:00:11]} d5 {[%emt 0:00:19]} 5. Nxe5 {[%emt 0:00:41]} Nd7 {[%emt 0:00:24]} 6. O-O {[%emt 0:03:53]} Bd6 {[%emt 0:01:40]} 7. Bxe4 {[%emt 0:02:04]} dxe4 {[%emt 0:00:46]} 8. Nc4 {[%emt 0:00:10]} O-O {[%emt 0:01:17]} 9. Nxd6 {[%emt 0:02:09]} cxd6 {[%emt 0:00:06]} 10. Nc3 {[%emt 0:00:23]} f5 {[%emt 0:06:22]} 11. f3 {[%emt 0:03:13]} exf3 {[%emt 0:13:06]} 12. Qxf3 {[%emt 0:03:13]} Qb6 {[%emt 0:00:52]} 13. Qd5+ {[%emt 0:02:46]} Kh8 {[%emt 0:00:29]} 14. Nb5 {[%emt 0:00:55]} Rf6 {[%emt 0:06:01]} 15. Bf4 {[%emt 0:13:07]} Ne5 {[%emt 0:01:06]} 16. Rae1 {[%emt 0:09:01]} Bd7 {[%emt 0:01:45]} 17. Nxd6 {[%emt 0:16:43]} Rxd6 {[%emt 0:00:24]} 18. Qxe5 {[%emt 0:00:17]} Rg6 {[%emt 0:01:02]} 19. Qc5 {[%emt 0:03:12]} Bc6 {[%emt 0:04:06]} 20. Rf2 {[%emt 0:02:04]} Qxb2 {[%emt 0:02:23]} 21. d5 {[%emt 0:03:23]} b6 {[%emt 0:05:21]} 22. Qc4 {[%emt 0:01:54]} Be8 {[%emt 0:05:45]} 23. Be5 {[%emt 0:01:13]} Qb5 {[%emt 0:01:50]} 24. Rxf5 {[%emt 0:00:47]} h6 {[%emt 0:00:25]} 25. Rf8+ {[%emt 0:00:08]} 1-0

[Event "26th OIBM 2023"]
[Site "Gmund am Tegernsee"]
[Date "2023.11.05"]
[Round "9.29"]
[White "Hoy, Bernd"]
[Black "Renner, Kai"]
[Result "1/2-1/2"]
[ECO "A80"]
[WhiteElo "2251"]
[BlackElo "2103"]
[Annotator "RC"]
[PlyCount "22"]
[EventDate "2023.10.04"]
[EventType "swiss"]
[EventCountry "GER"]
[SourceTitle "playchess.com"]
[Source "ChessBase"]
[SourceQuality "1"]
[TimeControl "40/5400+30:1800+30"]

1. d4 {[%emt 0:00:01]} f5 {[%emt 0:00:27]} 2. h3 {[%emt 0:00:03]} Nf6 {[%emt 0:02:10]} 3. g4 {[%emt 0:04:36]} d5 {[%emt 0:00:55]} 4. g5 {[%emt 0:00:29]} Ne4 {[%emt 0:01:03]} 5. Bf4 {[%emt 0:00:22]} e6 {[%emt 0:01:25]} 6. Nf3 {[%emt 0:00:27]} Bd6 {[%emt 0:06:23]} 7. Bxd6 {[%emt 0:00:09]} Qxd6 {[%emt 0:01:12]} 8. c3 {[%emt 0:00:06]} O-O {[%emt 0:04:54]} 9. Ne5 {[%emt 0:02:03]} Nxg5 {[%emt 0:07:29]} 10. Rg1 {[%emt 0:01:07]} Nf7 {[%emt 0:02:33]} 11. f4 {[%emt 0:00:11]} Nxe5 {[%emt 0:03:45]} 1/2-1/2

[Event "26th OIBM 2023"]
[Site "Gmund am Tegernsee"]
[Date "2023.11.05"]
[Round "9.30"]
[White "Strahl, Christian"]
[Black "Cordts, Ingo"]
[Result "1/2-1/2"]
[ECO "B40"]
[WhiteElo "1857"]
[BlackElo "2242"]
[Annotator "RC"]
[PlyCount "59"]
[EventDate "2023.10.04"]
[EventType "swiss"]
[EventCountry "GER"]
[SourceTitle "playchess.com"]
[Source "ChessBase"]
[SourceQuality "1"]
[TimeControl "40/5400+30:1800+30"]

1. e4 {[%emt 0:00:03]} c5 {[%emt 0:00:07]} 2. Nf3 {[%emt 0:00:07]} e6 {[%emt 0:00:07]} 3. b4 {[%emt 0:00:17]} b6 {[%emt 0:00:12]} 4. bxc5 {[%emt 0:01:27]} bxc5 {[%emt 0:00:08]} 5. Nc3 {[%emt 0:13:00]} Nc6 {[%emt 0:02:38]} 6. Bb5 {[%emt 0:01:07]} Qc7 {[%emt 0:10:35]} 7. O-O {[%emt 0:03:21]} Nge7 {[%emt 0:03:54]} 8. d4 {[%emt 0:09:37]} Nxd4 {[%emt 0:00:43]} 9. Nxd4 {[%emt 0:00:13]} cxd4 {[%emt 0:00:02]} 10. Qxd4 {[%emt 0:00:30]} Nc6 {[%emt 0:00:28]} 11. Bxc6 {[%emt 0:03:57]} Qxc6 {[%emt 0:06:33]} 12. Rb1 {[%emt 0:06:27]} f6 {[%emt 0:05:04]} 13. Be3 {[%emt 0:02:31]} Ba6 {[%emt 0:02:39]} 14. Rfd1 {[%emt 0:03:00]} d6 {[%emt 0:02:05]} 15. a4 {[%emt 0:02:14]} Be7 {[%emt 0:05:11]} 16. Nb5 {[%emt 0:03:09]} Bxb5 {[%emt 0:02:18]} 17. axb5 {[%emt 0:01:12]} Qb7 {[%emt 0:04:09]} 18. Rb2 {[%emt 0:10:00]} a6 {[%emt 0:05:27]} 19. b6 {[%emt 0:07:22]} Kf7 {[%emt 0:01:33]} 20. Rd3 {[%emt 0:04:01]} Rhc8 {[%emt 0:01:36]} 21. Rc3 {[%emt 0:01:56]} Rxc3 {[%emt 0:11:42]} 22. Qxc3 {[%emt 0:00:02]} Bd8 {[%emt 0:01:06]} 23. Qd3 {[%emt 0:01:59]} Be7 {[%emt 0:06:07]} 24. Qc4 {[%emt 0:01:24]} Rc8 {[%emt 0:00:54]} 25. Qxc8 {[%emt 0:03:18]} Qxc8 {[%emt 0:00:25]} 26. b7 {[%emt 0:00:12]} Qb8 {[%emt 0:02:33]} 27. c3 {[%emt 0:06:11]} d5 {[%emt 0:05:37]} 28. Ba7 {[%emt 0:03:20]} Qf4 {[%emt 0:01:00]} 29. Be3 {[%emt 0:00:59]} Qb8 {[%emt 0:01:07]} 30. Ba7 {[%emt 0:03:03]} 1/2-1/2

[Event "26th OIBM 2023"]
[Site "Gmund am Tegernsee"]
[Date "2023.11.05"]
[Round "9.31"]
[White "Ghazarian, Kirk"]
[Black "Engesser, Jonas"]
[Result "1-0"]
[ECO "E73"]
[WhiteElo "2473"]
[BlackElo "2100"]
[Annotator "RC"]
[PlyCount "105"]
[EventDate "2023.10.04"]
[EventType "swiss"]
[EventCountry "GER"]
[SourceTitle "playchess.com"]
[Source "ChessBase"]
[SourceQuality "1"]
[TimeControl "40/5400+30:1800+30"]

1. d4 {[%emt 0:00:18]} Nf6 {[%emt 0:00:05]} 2. c4 {[%emt 0:00:04]} g6 {[%emt 0:00:04]} 3. Nc3 {[%emt 0:00:03]} Bg7 {[%emt 0:00:04]} 4. e4 {[%emt 0:00:06]} d6 {[%emt 0:00:02]} 5. Be2 {[%emt 0:00:09]} O-O {[%emt 0:00:10]} 6. h4 {[%emt 0:00:37]} c5 {[%emt 0:01:53]} 7. d5 {[%emt 0:00:06]} e6 {[%emt 0:00:32]} 8. h5 {[%emt 0:00:14]} exd5 {[%emt 0:01:30]} 9. exd5 {[%emt 0:02:16]} Re8 {[%emt 0:01:21]} 10. h6 {[%emt 0:00:08]} Bh8 {[%emt 0:00:08]} 11. Bg5 {[%emt 0:00:23]} Qb6 {[%emt 0:01:26]} 12. b3 {[%emt 0:00:38]} Ne4 {[%emt 0:01:04]} 13. Nxe4 {[%emt 0:00:10]} Rxe4 {[%emt 0:00:04]} 14. Kf1 {[%emt 0:00:25]} Nd7 {[%emt 0:01:05]} 15. Nf3 {[%emt 0:10:30]} Ne5 {[%emt 0:00:08]} 16. Nxe5 {[%emt 0:07:28]} Bxe5 {[%emt 0:28:02]} 17. Rc1 {[%emt 0:09:22]} Qa5 {[%emt 0:10:08]} 18. Qd2 {[%emt 0:02:29]} Qxd2 {[%emt 0:00:38]} 19. Bxd2 {[%emt 0:00:02]} Bd4 {[%emt 0:01:03]} 20. Bd3 {[%emt 0:01:18]} Re8 {[%emt 0:00:25]} 21. g3 {[%emt 0:06:05]} Bg4 {[%emt 0:07:47]} 22. Kg2 {[%emt 0:03:22]} Re7 {[%emt 0:02:19]} 23. Rhe1 {[%emt 0:03:58]} Rae8 {[%emt 0:02:28]} 24. Rxe7 Rxe7 {[%emt 0:00:01]} 25. Bf4 {[%emt 0:02:37]} Be5 {[%emt 0:03:01]} 26. Bg5 {[%emt 0:00:55]} f6 {[%emt 0:11:17]} 27. Be3 {[%emt 0:00:06]} Bd7 {[%emt 0:00:42]} 28. Rc2 {[%emt 0:01:06]} Kf7 {[%emt 0:01:45]} 29. f4 {[%emt 0:08:30]} Ba1 {[%emt 0:00:21]} 30. Kf2 {[%emt 0:00:13]} f5 {[%emt 0:00:09]} 31. b4 {[%emt 0:06:52]} b6 {[%emt 0:08:08]} 32. bxc5 {[%emt 0:00:27]} bxc5 {[%emt 0:00:01]} 33. Rc1 {[%emt 0:00:40]} Bf6 {[%emt 0:01:44]} 34. Rb1 {[%emt 0:00:19]} Bc8 {[%emt 0:05:12]} 35. Rb8 {[%emt 0:02:04]} Ba6 {[%emt 0:02:49]} 36. Ra8 {[%emt 0:00:17]} Rb7 {[%emt 0:03:20]} 37. Kf3 {[%emt 0:00:51]} Re7 {[%emt 0:00:10]} 38. Bd2 {[%emt 0:01:59]} Bb7 {[%emt 0:01:31]} 39. Rb8 {[%emt 0:00:02]} Ba6 {[%emt 0:02:29]} 40. g4 {[%emt 0:02:02]} fxg4+ {[%emt 0:02:19]} 41. Kxg4 {[%emt 0:30:02]} Rc7 {[%emt 0:08:54]} 42. f5 {[%emt 0:00:00]} Bc8 {[%emt 0:03:36]} 43. Bf4 {[%emt 0:00:00]} Bxf5+ {[%emt 0:09:34]} 44. Bxf5 {[%emt 0:00:00]} gxf5+ {[%emt 0:00:01]} 45. Kxf5 {[%emt 0:00:00]} Rd7 {[%emt 0:00:27]} 46. a4 {[%emt 0:00:00]} Bc3 {[%emt 0:01:27]} 47. Rb3 {[%emt 0:00:00]} Be1 {[%emt 0:03:01]} 48. Rb1 {[%emt 0:00:00]} Bc3 {[%emt 0:01:46]} 49. Rb3 {[%emt 0:00:00]} Be1 {[%emt 0:00:09]} 50. Re3 {[%emt 0:00:00]} Bd2 {[%emt 0:00:40]} 51. Rg3 {[%emt 0:00:00]} Bxf4 {[%emt 0:00:19]} 52. Rg7+ {[%emt 0:00:00]} Ke8 {[%emt 0:00:45]} 53. Ke4 {[%emt 0:37:47]} 1-0

[Event "26th OIBM 2023"]
[Site "Gmund am Tegernsee"]
[Date "2023.11.05"]
[Round "9.33"]
[White "Ernst, Robert"]
[Black "Dolzhykova, Kateryna"]
[Result "0-1"]
[ECO "E44"]
[WhiteElo "2093"]
[BlackElo "2336"]
[Annotator "RC"]
[PlyCount "98"]
[EventDate "2023.10.04"]
[EventType "swiss"]
[EventCountry "GER"]
[SourceTitle "playchess.com"]
[Source "ChessBase"]
[SourceQuality "1"]
[TimeControl "40/5400+30:1800+30"]

1. d4 {[%emt 0:00:05]} Nf6 {[%emt 0:00:05]} 2. c4 {[%emt 0:00:14]} e6 {[%emt 0:00:03]} 3. Nc3 {[%emt 0:00:11]} Bb4 {[%emt 0:00:08]} 4. e3 {[%emt 0:00:10]} b6 {[%emt 0:00:37]} 5. Nge2 {[%emt 0:00:10]} Ne4 {[%emt 0:00:27]} 6. Bd2 {[%emt 0:00:09]} Nxd2 {[%emt 0:00:30]} 7. Qxd2 {[%emt 0:00:03]} O-O {[%emt 0:01:18]} 8. a3 {[%emt 0:01:44]} Be7 {[%emt 0:00:14]} 9. Nf4 {[%emt 0:05:44]} c6 {[%emt 0:01:31]} 10. Bd3 {[%emt 0:03:41]} d5 {[%emt 0:00:37]} 11. cxd5 {[%emt 0:02:56]} exd5 {[%emt 0:00:57]} 12. b4 {[%emt 0:05:21]} b5 {[%emt 0:10:55]} 13. a4 {[%emt 0:09:36]} Bxb4 {[%emt 0:11:52]} 14. axb5 {[%emt 0:00:09]} c5 {[%emt 0:07:24]} 15. Nfxd5 {[%emt 0:09:07]} Bb7 {[%emt 0:04:06]} 16. Nxb4 {[%emt 0:03:50]} cxb4 {[%emt 0:00:09]} 17. Ne4 {[%emt 0:12:13]} Qh4 {[%emt 0:03:56]} 18. Nd6 {[%emt 0:01:29]} Bxg2 {[%emt 0:01:35]} 19. Nf5 {[%emt 0:00:07]} Qh3 {[%emt 0:02:13]} 20. Rg1 {[%emt 0:00:17]} g6 {[%emt 0:06:55]} 21. f4 {[%emt 0:00:41]} Bb7 {[%emt 0:02:08]} 22. O-O-O {[%emt 0:08:32]} a6 {[%emt 0:01:48]} 23. Rg3 {[%emt 0:08:40]} Qh5 {[%emt 0:00:13]} 24. Rg5 {[%emt 0:00:49]} Qf3 {[%emt 0:06:31]} 25. Rf1 {[%emt 0:02:09]} Qh3 {[%emt 0:00:57]} 26. Rfg1 {[%emt 0:03:40]} Qf3 {[%emt 0:03:50]} 27. R5g3 {[%emt 0:04:17]} Qh5 {[%emt 0:00:45]} 28. Qxb4 {[%emt 0:07:17]} Nd7 {[%emt 0:03:26]} 29. Qe7 {[%emt 0:03:40]} axb5 {[%emt 0:02:38]} 30. h4 {[%emt 0:03:15]} Ra1+ {[%emt 0:01:35]} 31. Kb2 {[%emt 0:00:01]} Rxg1 {[%emt 0:00:16]} 32. Rxg1 {[%emt 0:00:01]} Qf3 {[%emt 0:00:22]} 33. Rc1 {[%emt 0:01:37]} Bc6 {[%emt 0:11:00]} 34. Nd6 {[%emt 0:02:13]} Nb6 {[%emt 0:00:49]} 35. Nxb5 {[%emt 0:02:38]} Re8 {[%emt 0:03:53]} 36. Qc7 {[%emt 0:00:36]} Bxb5 {[%emt 0:03:02]} 37. Bxb5 {[%emt 0:00:08]} Nd5 {[%emt 0:00:34]} 38. Qd7 {[%emt 0:01:27]} Rxe3 {[%emt 0:00:37]} 39. Bc4 {[%emt 0:00:01]} Ne7 {[%emt 0:01:57]} 40. Qe8+ {[%emt 0:00:23]} Kg7 {[%emt 0:00:06]} 41. Qxf7+ {[%emt 0:03:03]} Kh6 {[%emt 0:00:03]} 42. Rc2 {[%emt 0:06:15]} Nf5 {[%emt 0:03:49]} 43. Qf8+ {[%emt 0:01:14]} Kh5 {[%emt 0:00:25]} 44. Qf6 {[%emt 0:01:34]} Qb7+ {[%emt 0:05:19]} 45. Ka2 {[%emt 0:04:06]} Qa8+ {[%emt 0:00:49]} 46. Ba6 {[%emt 0:06:13]} Qd5+ {[%emt 0:00:27]} 47. Bc4 {[%emt 0:05:00]} Qa5+ {[%emt 0:00:37]} 48. Kb1 {[%emt 0:00:01]} Qb4+ {[%emt 0:00:56]} 49. Ka1 {[%emt 0:00:05]} Qa3+ {[%emt 0:00:14]} 0-1